[Event "French-ch U16-U18 2024"]
[Site "Agen"]
[Date "2024.04.20"]
[Round "8.12"]
[White "Grimault, Leane"]
[Black "Berezovsky, Fiorina"]
[Result "0-1"]
[ECO "A13"]
[WhiteElo "1930"]
[BlackElo "1848"]
[Annotator "TA"]
[PlyCount "132"]
[EventDate "2024.04.14"]
[EventType "swiss"]
[EventCountry "FRA"]
[SourceTitle "playchess.com"]
[Source "ChessBase"]
[SourceQuality "1"]
[TimeControl "5400+30"]

{[%evp 9,132,28,8,0,49,55,62,63,69,64,68,66,67,60,97,106,95,32,30,36,32,32,32,14,32,22,87,86,152,90,175,159,220,209,189,37,97,67,76,50,47,46,68,47,70,31,47,46,60,43,72,0,4,0,0,11,9,0,0,-293,-299,-653,-668,-677,-666,-29986,-771,-705,-700,-641,-610,-615,-577,-602,-588,-583,-562,-827,-622,-603,-435,-823,-600,-556,-526,-525,0,-554,-518,-502,-406,-461,-458,-468,-452,-536,-529,-493,-505,-541,-547,-531,-460,-582,-569,-580,-580,-2852,-1664,-1422,-1274,-4937,-4930,-29985,-29986,-29986,-29987,-29987,-29984,-29984,-29985,-29989,-29987,-29992,-29991]} 1. c4 {[%emt 0:04:21]} e6 {[%emt 0:00:25]} 2. g3 {[%emt 0:00:17]} d5 {[%emt 0:00:53]} 3. Bg2 {[%emt 0:00:21]} Nf6 {[%emt 0:03:03]} 4. Nf3 {[%emt 0:01:01]} c6 {[%emt 0:03:04]} 5. O-O {[%emt 0:02:20]} dxc4 {[%emt 0:02:13]} 6. Qc2 {[%emt 0:01:25]} Bd6 {[%emt 0:07:33]} (6... b5 $11) 7. Qxc4 $14 {[%emt 0:02:11]} b5 {[%emt 0:02:33]} 8. Qc2 {[%emt 0:01:06] White is slightly better.} Bb7 {[%emt 0:04:21]} 9. d4 {[%emt 0:10:38]} Nbd7 {[%emt 0:03:18]} 10. Nc3 {[%emt 0:04:01]} (10. Ne5 {is more complex.} O-O 11. Rd1 a5 12. Nc3) 10... O-O {[%emt 0:02:45]} 11. Rd1 {[%emt 0:03:16]} Qb6 {[%emt 0:07:24]} 12. e4 {[%emt 0:04:00]} Be7 {[%emt 0:00:31]} 13. Ng5 {[%emt 0:10:00]} (13. e5 $16 Nd5 14. Bg5 Nxc3 15. Bxe7 (15. bxc3 Bd8 $16) (15. Qxc3 b4 $16) 15... Nxd1 16. Ng5 (16. Rxd1 h6 $14) (16. Bxf8 Nxf8 17. Rxd1 h6 $14)) 13... h6 {[%emt 0:06:36]} 14. e5 {[%emt 0:02:15]} hxg5 {[%emt 0:00:17]} 15. Bxg5 {[%emt 0:00:19]} Rac8 {[%emt 0:05:31]} 16. exf6 {[%emt 0:02:11]} Bxf6 {[%emt 0:01:08]} 17. Qd2 {[%emt 0:05:24]} a6 {[%emt 0:04:43]} (17... Bxg5 $11 18. Qxg5 c5 19. Bxb7 Qxb7) 18. Ne4 $16 {[%emt 0:04:38]} Qd8 {[%emt 0:02:42]} (18... Bxg5 $142 19. Qxg5 Ba8) 19. h4 {[%emt 0:00:59]} (19. Nxf6+ $142 gxf6 20. Bh6) 19... Qe7 {[%emt 0:03:40]} (19... Bxg5 $16 {is a better defense.} 20. hxg5 (20. Nxg5 Qe7 $16) 20... c5) 20. Rac1 {[%emt 0:02:50]} Rfd8 {[%emt 0:06:59]} (20... Bxg5 $16 21. hxg5 Rfd8) 21. Qf4 $18 {[%emt 0:02:52]} Bxg5 {[%emt 0:01:18]} 22. Nxg5 {[%emt 0:00:30]} (22. Qxg5 $6 Kf8 $14) (22. hxg5 $18 {Nd6 is the strong threat.} Rb8 23. g6) 22... Qf6 {[%emt 0:02:27]} (22... Nf6 $14) 23. Qe3 {[%emt 0:07:09]} (23. Qd6 {seems wilder.} Nb6 24. Qb4 Nd5 25. Qa5) 23... Qe7 $1 {[%emt 0:04:38]} 24. Rc2 {[%emt 0:02:31]} Nf6 {[%emt 0:00:55][%cal Oc6c5]} 25. Rdc1 {[%emt 0:00:31][%cal Rg2c6]} Qd6 {[%emt 0:01:15]} 26. Rd2 {[%emt 0:03:28]} Ba8 {[%emt 0:02:58]} 27. Rcd1 {[%emt 0:01:06]} Qb4 {[%emt 0:02:00]} 28. a3 {[%emt 0:01:19]} Qd6 {[%emt 0:00:46]} 29. Qe2 {[%emt 0:02:43]} Re8 {[%emt 0:02:40]} 30. Nf3 {[%emt 0:01:40]} (30. b4 $16) 30... c5 $11 {[%emt 0:01:25]} 31. dxc5 {[%emt 0:02:56]} Qxc5 {[%emt 0:00:25]} 32. Ne5 {[%emt 0:00:56]} Bd5 {[%emt 0:02:55]} 33. Bxd5 {[%emt 0:01:25]} exd5 {[%emt 0:00:06]} 34. b4 $2 {[%emt 0:03:32][%mdl 8192]} (34. Kg2 $11 {and White has nothing to worry.}) 34... Qc3 $19 {[%emt 0:01:04][%csl LRa3,LRe5]} 35. Re1 $2 {[%emt 0:01:14] [#]} (35. Rd4) 35... Rxe5 $1 {[%emt 0:00:25][%mdl 512]} 36. Qxe5 {[%emt 0:01:43]} Qxd2 {[%emt 0:00:04]} 37. Re2 {[%emt 0:00:26]} Qc1+ {[%emt 0:00:44]} (37... Rc1+ $142 38. Kg2 Qd1 39. Re1 Qxe1 40. Qxe1 Rxe1 41. f3 d4 (41... Re2+ {is a self mate.} 42. Kf1 Rc2 43. g4 d4 44. g5 Nd5 45. h5 d3 46. g6 Ne3+ 47. Kg1 Rg2+ 48. Kh1 d2 49. gxf7+ Kxf7 50. f4 d1=Q#) 42. Kf2 Re8 43. g4 d3 44. g5 Nh5 (44... Re2+ 45. Kg3 d2 46. gxf6 d1=Q 47. fxg7 Qd6+ 48. Kg4 Qe5 49. Kh3 f5 50. h5 Qh2#) (44... d2 45. g6 d1=Q 46. gxf7+ Kxf7 47. h5 Re2+ 48. Kg3 Qg1+ 49. Kf4 Nxh5+ 50. Kf5 g6#) 45. Kg2 d2 46. g6 Re2+ (46... d1=B {leads to mate.} 47. gxf7+ Kxf7 48. Kg1 Re2 49. Kf1 Ng3+ 50. Kg1 Ra2 51. f4 Bf3 52. h5 Rg2#) (46... d1=Q 47. gxf7+ Kxf7 48. f4 Qc2+ 49. Kf1 Ng3+ 50. Kg1 Re1#) 47. Kh3 f5 (47... d1=B 48. gxf7+ Kxf7 49. f4 Bc2 50. Kg4 Be4 51. Kxh5 Rg2 52. f5 Bf3#) 48. a4 d1=Q 49. axb5 Qh1#) 38. Kg2 {[%emt 0:00:45]} Re8 {[%emt 0:00:21]} 39. Qb2 {[%emt 0:01:23]} Qxb2 {[%emt 0:00:05]} 40. Rxb2 {[%emt 0:00:03][%mdl 4096] Endgame. KRN-KR} d4 {[%emt 0:00:16]} 41. Rd2 {[%emt 0:00:16]} Rd8 {[%emt 0:00:17]} 42. Kf3 {[%emt 0:00:14]} Kf8 {[%emt 0:00:53]} 43. Ke2 {[%emt 0:02:17]} Ke7 {[%emt 0:00:26] [#] Hoping for ...Ne4.} 44. Kd3 {[%emt 0:00:09]} Kd6 {[%emt 0:01:34] Strongly threatening ...Kd5.} 45. Re2 {[%emt 0:00:33]} (45. Rc2 $142) 45... Re8 {[%emt 0:00:13] ...Rxe2 would now be deadly.} 46. Rc2 {[%emt 0:00:14]} Re4 {[%emt 0:01:39]} 47. Rc8 {[%emt 0:00:56]} Re8 {[%emt 0:03:31]} 48. Rc2 {[%emt 0:00:39]} Nd5 {[%emt 0:00:29]} 49. Kxd4 {[%emt 0:01:01]} Nb6 {[%emt 0:00:13]} 50. Kd3 {[%emt 0:01:54]} Nc4 {[%emt 0:00:06][%cal Oe8e1]} 51. Kd4 {[%emt 0:01:12]} Re1 {[%emt 0:00:29] Threatens to win with ...Rd1+.} ({Less strong is} 51... Nxa3 52. Ra2 Nc4 53. Rxa6+ Kd7 54. Ra7+ Ke6 55. Ra6+ Kf5 56. Ra7 $19) 52. a4 {[%emt 0:01:01]} Rb1 {[%emt 0:01:42]} 53. axb5 {[%emt 0:00:26]} axb5 {[%emt 0:00:06]} 54. Ra2 {[%emt 0:00:05]} Rxb4 {[%emt 0:01:14]} 55. Ra6+ {[%emt 0:00:48]} Ke7 {[%emt 0:00:15]} 56. Kc3 {[%emt 0:00:30]} Rb1 {[%emt 0:01:57]} 57. Ra7+ {[%emt 0:00:17]} Ke6 {[%emt 0:00:33]} 58. Ra6+ {[%emt 0:00:27]} Kd5 {[%emt 0:00:20]} 59. Ra7 {[%emt 0:00:20]} b4+ {[%emt 0:00:36]} 60. Kc2 {[%emt 0:00:19]} Rb2+ {[%emt 0:00:54]} 61. Kc1 {[%emt 0:00:23]} Rxf2 {[%emt 0:00:13] Black mates.} 62. Rb7 {[%emt 0:00:16]} Kd4 {[%emt 0:00:25]} 63. Kd1 {[%emt 0:01:00]} Kc3 {[%emt 0:00:11]} 64. Ke1 {[%emt 0:00:13]} Rf6 {[%emt 0:00:11]} 65. Kd1 {[%emt 0:00:51]} b3 {[%emt 0:00:10]} 66. g4 {[%emt 0:00:13]} b2 {[%emt 0:00:12] Never resign too early!   Weighted Error Value: White=0.64/Black=0.30.  Loses game:     	White=1     	---        Mistake:       	White=5     	Black=6      Inaccurate:     	White=5     	Black=2      OK:         	White=15    	Black=10     Best:        	White=1     	Black=3      Strong:       	---       	Black=1} 0-1

[Event "French-ch U16-U18 2024"]
[Site "Agen"]
[Date "2024.04.20"]
[Round "8.13"]
[White "Personne, Solene"]
[Black "Le Coz, Marie Sarah"]
[Result "1/2-1/2"]
[ECO "B30"]
[WhiteElo "1719"]
[BlackElo "1840"]
[Annotator "NA RC COMBH"]
[PlyCount "106"]
[EventDate "2024.04.14"]
[EventType "swiss"]
[EventCountry "FRA"]
[SourceTitle "playchess.com"]
[Source "ChessBase"]
[SourceQuality "1"]
[TimeControl "5400+30"]

1. e4 {[%emt 0:00:03]} c5 {[%emt 0:00:05]} 2. Nf3 {[%emt 0:00:07]} Nc6 {[%emt 0:00:05]} 3. Bb5 {[%emt 0:00:11]} e6 {[%emt 0:00:10]} 4. Bxc6 {[%emt 0:00:16]} bxc6 {[%emt 0:00:10]} 5. d3 {[%emt 0:00:39]} Ne7 {[%emt 0:00:35]} 6. h4 {[%emt 0:01:06]} d5 {[%emt 0:05:13]} 7. Nbd2 {[%emt 0:06:55]} c4 {[%emt 0:10:01]} 8. dxc4 {[%emt 0:16:18]} dxe4 {[%emt 0:01:19]} 9. Nxe4 {[%emt 0:01:10]} Qxd1+ {[%emt 0:01:24]} 10. Kxd1 {[%emt 0:00:04]} Nf5 {[%emt 0:02:52]} 11. c5 {[%emt 0:03:10]} h5 {[%emt 0:03:26]} 12. Ne5 {[%emt 0:04:26]} Bb7 {[%emt 0:02:38]} 13. c3 {[%emt 0:08:57]} Rd8+ {[%emt 0:06:45]} 14. Kc2 {[%emt 0:00:28]} Rd5 {[%emt 0:08:36]} 15. Nd3 {[%emt 0:06:27]} Be7 {[%emt 0:06:16]} 16. g3 {[%emt 0:02:07]} O-O {[%emt 0:03:38]} 17. Re1 {[%emt 0:08:14]} Rfd8 {[%emt 0:07:16]} 18. Nf4 {[%emt 0:08:26]} R5d7 {[%emt 0:03:54]} 19. Nxh5 {[%emt 0:04:27]} e5 {[%emt 0:03:31]} 20. Bg5 {[%emt 0:10:41]} Bxg5 {[%emt 0:04:18]} 21. Nxg5 {[%emt 0:00:53]} Rd2+ {[%emt 0:05:10]} 22. Kb3 {[%emt 0:00:42]} f6 {[%emt 0:07:15]} 23. Ne4 {[%emt 0:03:00]} R2d3 {[%emt 0:01:40]} 24. g4 {[%emt 0:02:55]} Nd4+ {[%emt 0:01:51]} 25. Ka4 {[%emt 0:03:14]} Nc2 {[%emt 0:00:53]} 26. Rad1 {[%emt 0:00:25]} Rxd1 {[%emt 0:01:50]} 27. Rxd1 {[%emt 0:00:32]} Rxd1 {[%emt 0:00:07]} 28. Nd6 {[%emt 0:01:02]} Ba6 {[%emt 0:00:40]} 29. c4 {[%emt 0:00:51]} Rd4 {[%emt 0:03:45]} 30. b3 {[%emt 0:00:21]} Rxg4 {[%emt 0:01:02]} 31. Ka5 {[%emt 0:00:20]} Rxh4 {[%emt 0:00:53]} 32. Ng3 {[%emt 0:00:08]} Bxc4 {[%emt 0:00:41]} 33. Nxc4 {[%emt 0:00:33]} Nd4 {[%emt 0:01:06]} 34. Ka6 {[%emt 0:00:30]} Rf4 {[%emt 0:00:58]} 35. Nh1 {[%emt 0:00:41]} Re4 {[%emt 0:01:33]} 36. Ng3 {[%emt 0:00:36]} Re1 {[%emt 0:00:18]} 37. Na5 {[%emt 0:00:58]} Kf7 {[%emt 0:02:55]} 38. Kxa7 {[%emt 0:00:31]} Ke6 {[%emt 0:00:38]} 39. Kb6 {[%emt 0:01:09]} Kd5 {[%emt 0:00:43]} 40. Nh5 {[%emt 0:00:57]} Ra1 {[%emt 0:01:00]} 41. Nxg7 {[%emt 0:00:59]} Rxa2 {[%emt 0:00:43]} 42. Ne8 {[%emt 0:00:38]} f5 {[%emt 0:01:40]} 43. Nc7+ {[%emt 0:00:51]} Ke4 {[%emt 0:00:08]} 44. Nxc6 {[%emt 0:00:31]} Nxc6 {[%emt 0:00:22]} 45. Kxc6 {[%emt 0:00:03]} Rb2 {[%emt 0:00:53]} 46. Nb5 {[%emt 0:00:52]} Rxb3 {[%emt 0:00:51]} 47. Nd6+ {[%emt 0:00:15]} Kf4 {[%emt 0:00:40]} 48. Kd7 {[%emt 0:00:27]} Rc3 {[%emt 0:00:53]} 49. c6 {[%emt 0:00:31]} Kf3 {[%emt 0:00:38]} 50. Nxf5 {[%emt 0:00:27]} Kxf2 {[%emt 0:00:46]} 51. c7 {[%emt 0:00:46]} Rxc7+ {[%emt 0:00:22]} 52. Kxc7 {[%emt 0:00:17]} Kf3 {[%emt 0:00:33]} 53. Nd6 {[%emt 0:00:12]} Kf4 {[%emt 0:00:50]} 1/2-1/2

[Event "French-ch U16-U18 2024"]
[Site "Agen"]
[Date "2024.04.20"]
[Round "8.14"]
[White "Diez, Agathe"]
[Black "Kosteniuk, Kristina"]
[Result "1-0"]
[ECO "A61"]
[WhiteElo "1954"]
[BlackElo "1852"]
[Annotator "TA"]
[PlyCount "73"]
[EventDate "2024.04.14"]
[EventType "swiss"]
[EventCountry "FRA"]
[SourceTitle "playchess.com"]
[Source "ChessBase"]
[SourceQuality "1"]
[TimeControl "5400+30"]

{[%evp 16,73,40,33,48,36,24,40,59,63,103,93,111,105,109,70,151,126,150,114,132,104,77,89,98,109,167,164,279,258,362,307,299,211,217,205,321,270,264,260,265,260,282,252,456,448,415,405,1478,1435,1444,1382,2389,2363,29987,29988,29992,29993,29993,29993]} 1. d4 {[%emt 0:00:04]} Nf6 {[%emt 0:00:03]} 2. c4 {[%emt 0:00:11]} e6 {[%emt 0:00:05]} 3. Nf3 {[%emt 0:00:12]} c5 {[%emt 0:00:11]} 4. d5 {[%emt 0:00:15]} exd5 {[%emt 0:00:06]} 5. cxd5 {[%emt 0:00:13]} d6 {[%emt 0:00:05]} 6. Nc3 {[%emt 0:00:43]} g6 {[%emt 0:00:28]} 7. Bf4 {[%emt 0:00:40]} a6 {[%emt 0:02:20]} 8. a4 {[%emt 0:00:28]} Bg7 {[%emt 0:00:20]} 9. e3 {[%emt 0:00:45]} O-O {[%emt 0:00:20]} 10. Bd3 {[%emt 0:00:41]} Re8 {[%emt 0:01:49]} 11. O-O {[%emt 0:02:38]} Nh5 {[%emt 0:06:29] White is slightly better.} 12. Bg5 {[%emt 0:02:56]} f6 {[%emt 0:16:09]} 13. Bh4 {[%emt 0:01:00]} Qc7 {[%emt 0:04:58]} 14. Nd2 {[%emt 0:06:48]} f5 {[%emt 0:03:50]} 15. e4 {[%emt 0:06:07]} Nf4 {[%emt 0:13:59]} (15... f4 $14) 16. Bc2 $16 {[%emt 0:05:47] Bg5 would now be deadly.} fxe4 {[%emt 0:12:38]} 17. Ndxe4 {[%emt 0:03:43]} Nd7 {[%emt 0:05:56]} 18. Qd2 $1 {[%emt 0:08:36]} Nh5 {[%emt 0:06:28]} 19. Ng5 {[%emt 0:04:35] White is more active.} Ne5 {[%emt 0:04:40]} 20. Rae1 {[%emt 0:06:11]} Bd7 {[%emt 0:03:21] [#]} (20... Qd8 $16 {might work better.}) 21. Ne6 $1 $18 {[%emt 0:03:40]} Bxe6 {[%emt 0:02:59]} (21... Qa5 {is a better defense.} 22. f4 Nc4) 22. dxe6 {[%emt 0:00:06]} Nc4 {[%emt 0:12:00]} (22... c4 $142 23. Nd5 Qc8) 23. Qd5 {[%emt 0:03:33]} Nb6 {[%emt 0:00:24]} 24. Qb3 {[%emt 0:03:13] Black must now prevent a5.} c4 {[%emt 0:01:09] [#]} 25. Qa3 {[%emt 0:00:26] Strongly threatening a5.} Nf6 {[%emt 0:00:52]} (25... Nf4 $142 26. a5 Nc8) 26. Bxf6 {[%emt 0:01:02]} Bxf6 {[%emt 0:00:03]} 27. a5 {[%emt 0:00:06]} Nc8 {[%emt 0:00:07]} 28. Nd5 {[%emt 0:00:26][%csl LRc7,LRf6] Prevents Ne7.} Qg7 {[%emt 0:00:13]} 29. Qb4 {[%emt 0:01:37]} Bxb2 $2 {[%emt 0:00:33]} (29... Rb8 30. Ba4 (30. Qxc4 Ne7 $18) 30... Rd8) 30. Ba4 {[%emt 0:00:51]} ({Weaker is} 30. Qxc4 Ne7 31. Ba4 Rec8 $18) 30... Ne7 {[%emt 0:01:18]} 31. Bxe8 {[%emt 0:00:54]} ({Don't play} 31. Qxc4 Rec8 32. Qb3 Bf6 $18) (31. Qxd6 Rad8 32. Nxe7+ Qxe7 $18) 31... Nxd5 {[%emt 0:00:18]} (31... Rxe8 $142 32. Qxc4 (32. Qxd6 Nxd5 33. Qxd5 h6 $18) 32... h5) 32. Bf7+ {[%emt 0:00:18]} Kh8 {[%emt 0:00:14]} 33. Qxb7 {[%emt 0:00:08]} Rf8 {[%emt 0:01:51]} 34. Qxd5 {[%emt 0:00:07][%cal Oe6e7] e7! would kill now.} c3 {[%emt 0:00:35][%cal Bc4c3,Bc3c2][%mdl 32]} 35. e7 {[%emt 0:01:00] White mates.} Re8 {[%emt 0:00:28]} 36. Bxe8 {[%emt 0:00:32]} c2 {[%emt 0:00:15]} 37. Ba4 {[%emt 0:00:13] Weighted Error Value: White=0.16 (very precise) /Black=0.55.  Mistake:       	---       	Black=7      Inaccurate:     	White=1     	Black=1      OK:         	White=9     	Black=7      Best:        	White=3     	Black=2      Strong:       	White=1     	---} 1-0

[Event "French-ch U16-U18 2024"]
[Site "Agen"]
[Date "2024.04.20"]
[Round "8.15"]
[White "Yaghi, leen"]
[Black "Boghossian, Lucie"]
[Result "1-0"]
[ECO "E81"]
[WhiteElo "1941"]
[BlackElo "1764"]
[Annotator "TA"]
[PlyCount "57"]
[EventDate "2024.04.14"]
[EventType "swiss"]
[EventCountry "FRA"]
[SourceTitle "playchess.com"]
[Source "ChessBase"]
[SourceQuality "1"]
[TimeControl "5400+30"]

{[%evp 15,57,62,89,93,85,98,96,74,76,60,79,64,99,57,128,0,3,2,60,60,166,157,386,352,374,202,203,198,181,110,302,227,264,257,256,139,492,489,2650,2076,29986,29987,29989,912]} 1. d4 {[%emt 0:00:13]} Nf6 {[%emt 0:00:22]} 2. c4 {[%emt 0:00:17]} g6 {[%emt 0:00:28]} 3. Nc3 {[%emt 0:00:29]} Bg7 {[%emt 0:00:15]} 4. e4 {[%emt 0:00:19]} d6 {[%emt 0:00:38]} 5. f3 {[%emt 0:00:27]} O-O {[%emt 0:02:09]} 6. Bg5 {[%emt 0:00:37]} h6 {[%emt 0:04:26]} 7. Be3 {[%emt 0:00:31]} e5 {[%emt 0:02:54]} 8. d5 {[%emt 0:02:17]} a5 {[%emt 0:02:29]} 9. Qd2 {[%emt 0:00:44]} Na6 {[%emt 0:02:43]} 10. h4 {[%emt 0:03:09]} (10. Bxh6 Nxe4 11. Nxe4 Qh4+ 12. g3 Qxh6 13. Qxh6 Bxh6 $17) 10... Kh7 {[%emt 0:07:52]} 11. Bd3 {[%emt 0:07:55] White is better.} Nc5 {[%emt 0:08:43]} 12. Nh3 {[%emt 0:08:01][%cal Bg1h3,Bh3f2,Bf2d3][%mdl 32]} Rh8 {[%emt 0:08:54]} 13. O-O-O {[%emt 0:06:50]} Bd7 {[%emt 0:08:46]} 14. g4 {[%emt 0:07:03]} Kg8 {[%emt 0:01:55]} ({Black should play} 14... Nxd3+ $14 15. Qxd3 Qc8) 15. g5 {[%emt 0:20:13]} ({Better is} 15. Nf2 $16) 15... Nh5 {[%emt 0:07:09]} 16. Nf2 {[%emt 0:09:36]} Qf8 {[%emt 0:05:48]} (16... Nf4 $1 $11) 17. Rdg1 {[%emt 0:04:11]} f5 {[%emt 0:07:31]} (17... Nf4 $14) 18. gxh6 {[%emt 0:06:43]} Bxh6 $2 {[%emt 0:05:33] [#]} (18... Rxh6 $16 19. Bxc5 (19. Bxh6 Bxh6 20. Rxg6+ Kh7 $16) 19... dxc5 20. exf5 Bxf5) 19. Rxg6+ $18 {[%emt 0:20:25]} Bg7 {[%emt 0:00:46]} 20. exf5 {[%emt 0:00:00]} (20. Bxc5 $142 f4 21. Ba3) 20... Nxd3+ {[%emt 0:03:10]} 21. Nxd3 {[%emt 0:00:00][%cal Of5f6] Hoping for f6!} ({Weaker is} 21. Qxd3 Bxf5 (21... Qxf5 22. Qxf5 Bxf5 23. Rg5 $16) 22. Rxg7+ Kxg7 $11) 21... Bxf5 {[%emt 0:00:14] [#]} 22. Rg5 {[%emt 0:00:00]} (22. Rg2 $1 $18) 22... Qf6 $2 {[%emt 0:02:24]} (22... Bxd3 $16 {was called for.} 23. Qxd3 Qxf3) 23. Ne4 {[%emt 0:00:00]} Qf7 {[%emt 0:03:14]} 24. Rhg1 {[%emt 0:00:00] Threatens to win with Ng3.} Rh7 {[%emt 0:00:46]} 25. R5g2 {[%emt 0:00:00]} (25. Ndf2 $18) 25... Rh8 $2 {[%emt 0:02:37][%mdl 8192]} (25... Bxe4 $16 {is a better chance.} 26. fxe4 Qf3) 26. Bh6 {[%emt 0:00:00]} Kf8 {[%emt 0:02:32]} (26... Rh7 $142 27. Ng5 Bxh6) 27. Bxg7+ {[%emt 0:00:00]} Nxg7 {[%emt 0:00:33]} 28. Rxg7 {[%emt 0:00:00]} Qh5 {[%emt 0:00:52]} 29. Qg5 {[%emt 0:00:00] Weighted Error Value: White=0.44/Black=0.86.  Loses game:     	---       	Black=3      Mistake:       	White=4     	Black=4      Inaccurate:     	White=1     	Black=2      OK:         	White=2     	Black=3      Best:        	White=2     	Black=2} (29. Nxe5 $142 Qxh4 30. Rf7+ Ke8 31. Rxf5 dxe5 32. d6 (32. Rxe5+ Kd8 $18) (32. Kb1 Qe7 $18) 32... c6 33. Rxe5+ Kd8 34. Rxa5) 1-0